lending/lending_fUSD_20240120
["ID","MTS","AMOUNT","RATE_DAILY","PERIOD"]
[312303702,1705766565503,-518.52,0.00045205,40]
[312303703,1705766565527,-552.05,0.00045205,40]
[312303704,1705766565551,-459.97356914,0.00045205,40]
[312303705,1705766565575,-500.0,0.00045205,40]
[312303706,1705766565601,-734.76,0.00045205,40]
[312303707,1705766565763,-500.0,0.00045205,40]
[312303708,1705766565793,-535.85,0.00045205,40]
[312303709,1705766565817,-2536.89,0.00045205,40]
[312303710,1705766565843,-500.0,0.00045205,40]
[312303711,1705766565868,-500.0,0.00045205,40]
[312303712,1705766565893,-500.0,0.00045205,40]
[312303713,1705766565917,-500.0,0.00045205,40]
[312303714,1705766565942,-500.0,0.00045205,40]
[312303715,1705766565967,-581.13,0.00045205,40]
[312303716,1705766565991,-500.0,0.00045205,40]
[312303717,1705766566017,-601.79,0.00045205,40]
[312303718,1705766566046,-500.0,0.00045205,40]
[312303719,1705766566070,-500.0,0.00045205,40]
[312303720,1705766566095,-749.18,0.00045205,40]
[312303721,1705766566119,-500.0,0.00045205,40]
[312303722,1705766566143,-645.65,0.00045205,40]
[312303723,1705766566167,-673.47,0.00045205,40]
[312303724,1705766566193,-500.0,0.00045205,40]
[312303725,1705766566217,-500.0,0.00045205,40]
[312303726,1705766566242,-500.0,0.00045205,40]
[312303727,1705766566267,-1014.7,0.00045205,40]
[312303728,1705766566292,-731.43,0.00045205,40]
[312303729,1705766566317,-824.01,0.00045205,40]
[312303730,1705766566342,-500.0,0.00045205,40]
[312303731,1705766566369,-1208.0,0.00045209,30]
[312303732,1705766566392,-5000.0,0.0004525,30]
[312303733,1705766566416,-500.0,0.0004526,30]
[312303734,1705766566440,-152.75273,0.000454,30]
[312303735,1705766566466,-500.0,0.00045479,40]
[312303736,1705766566489,-500.0,0.00045479,40]
[312303737,1705766566513,-1000.0,0.00045479,40]
[312303738,1705766566537,-500.0,0.00045479,40]
[312303739,1705766566561,-152.09337052,0.00045479,30]
[312303740,1705766566586,-551.24,0.00045479,40]
[312303741,1705766566610,-250.0,0.00045479,40]
[312303742,1705766566634,-2646.67,0.00045479,40]
[312303743,1705766566660,-500.0,0.00045479,40]
[312303744,1705766566684,-1263.12,0.00045479,40]
[312303745,1705766566709,-1087.88,0.00045479,40]
[312303746,1705766566733,-500.0,0.00045479,40]
[312303747,1705766566757,-2773.99,0.00045479,40]
[312303748,1705766566781,-500.0,0.00045479,40]
[312303749,1705766566808,-628.33934147,0.00045479,40]
[312303750,1705766566832,-500.0,0.00045479,40]
[312303751,1705766566857,-500.0,0.00045479,40]
[312303752,1705766566882,-500.0,0.00045479,40]
[312303753,1705766566905,-500.0,0.00045479,40]
[312303754,1705766566929,-786.02,0.00045479,40]
[312303755,1705766566954,-1837.12,0.00045479,40]
[312303756,1705766566978,-500.0,0.00045479,40]
[312303757,1705766567001,-500.0,0.00045479,40]
[312303758,1705766567029,-1753.47,0.00045479,40]
[312303759,1705766567053,-1007.56,0.00045479,30]
[312303760,1705766567077,-500.0,0.00045479,40]
[312303761,1705766567101,-500.0,0.00045479,40]
[312303762,1705766567125,-500.0,0.00045479,40]
[312303763,1705766567149,-500.0,0.00045479,40]
[312303764,1705766567174,-500.0,0.00045479,40]
[312303765,1705766567199,-869.49,0.00045479,40]
[312303766,1705766567225,-500.0,0.00045479,40]
[312303767,1705766567249,-518.52,0.00045479,40]
[312303768,1705766567272,-552.05,0.00045479,40]
[312303769,1705766567296,-500.0,0.00045479,40]
[312303770,1705766567319,-734.76,0.00045479,40]
[312303771,1705766567344,-500.0,0.00045479,40]
[312303772,1705766567368,-535.85,0.00045479,40]
[312303773,1705766567391,-2536.89,0.00045479,40]
[312303774,1705766567416,-500.0,0.00045479,40]
[312303775,1705766567442,-500.0,0.00045479,40]
[312303776,1705766567469,-500.0,0.00045479,40]
[312303777,1705766567494,-500.0,0.00045479,40]
[312303778,1705766567518,-500.0,0.00045479,40]
[312303779,1705766567543,-581.13,0.00045479,40]
[312303780,1705766567568,-500.0,0.00045479,40]
[312303781,1705766567592,-601.79,0.00045479,40]
[312303782,1705766567616,-500.0,0.00045479,40]
[312303783,1705766567643,-500.0,0.00045479,40]
[312303784,1705766567667,-749.18,0.00045479,40]
[312303785,1705766567693,-500.0,0.00045479,40]
[312303786,1705766567716,-645.65,0.00045479,40]
[312303787,1705766567741,-673.47,0.00045479,40]
[312303788,1705766567766,-500.0,0.00045479,40]
[312303789,1705766567791,-500.0,0.00045479,40]
[312303790,1705766567816,-500.0,0.00045479,40]
[312303791,1705766567841,-1014.7,0.00045479,40]
[312303792,1705766567866,-731.43,0.00045479,40]
[312303793,1705766567892,-824.01,0.00045479,40]
[312303794,1705766567916,-500.0,0.00045479,40]
[312303795,1705766567939,-510.62,0.000455,45]
[312303796,1705766567965,-1030.17,0.000455,60]
[312303797,1705766567989,-478.05362015,0.000455,120]
[312303798,1705766568013,-5000.0,0.000455,30]
[312303799,1705766568037,-150.0,0.00045558,120]
[312303800,1705766568061,-400.0,0.00045589,120]
[312303801,1705766568085,-2053.0,0.000456,30]
[312303802,1705766568109,-152.75273,0.000456,30]
[312303803,1705766568132,-156.42209015,0.00045621,30]
[312303804,1705766568156,-5000.0,0.0004575,30]
[312303805,1705766568180,-500.0,0.00045753,40]
[312303806,1705766568204,-500.0,0.00045753,40]
[312303807,1705766568228,-1000.0,0.00045753,40]
[312303808,1705766568251,-500.0,0.00045753,40]
[312303809,1705766568274,-250.0,0.00045753,40]
[312303810,1705766568297,-2646.67,0.00045753,40]
[312303811,1705766568322,-397.38170594,0.00045753,40]
[312303812,1705766568481,-1263.12,0.00045753,40]
[312303813,1705766568506,-1087.88,0.00045753,40]
[312303814,1705766568530,-500.0,0.00045753,40]
[312303815,1705766568554,-2773.99,0.00045753,40]
[312303816,1705766568578,-500.0,0.00045753,40]
[312303817,1705766568603,-500.0,0.00045753,40]
[312303818,1705766568631,-500.0,0.00045753,40]
[312303819,1705766568657,-500.0,0.00045753,40]
[312303820,1705766568683,-500.0,0.00045753,40]
[312303821,1705766568708,-786.02,0.00045753,40]
[312303822,1705766568733,-1837.12,0.00045753,40]
[312303823,1705766568757,-500.0,0.00045753,40]
[312303824,1705766568782,-500.0,0.00045753,40]
[312303825,1705766568810,-1753.47,0.00045753,40]
[312303826,1705766568834,-1007.56,0.00045753,30]
[312303827,1705766568858,-500.0,0.00045753,40]
[312303828,1705766568887,-500.0,0.00045753,40]
[312303829,1705766568915,-500.0,0.00045753,40]
[312303830,1705766568942,-500.0,0.00045753,40]
[312303831,1705766568968,-500.0,0.00045753,40]
[312303832,1705766568993,-869.49,0.00045753,40]
[312303833,1705766569017,-500.0,0.00045753,40]
[312303834,1705766569042,-518.52,0.00045753,40]
[312303835,1705766569066,-552.05,0.00045753,40]
[312303836,1705766569090,-500.0,0.00045753,40]
[312303837,1705766569114,-734.76,0.00045753,40]
[312303838,1705766569138,-500.0,0.00045753,40]
[312303839,1705766569162,-535.85,0.00045753,40]
[312303840,1705766569186,-2536.89,0.00045753,40]
[312303841,1705766569210,-500.0,0.00045753,40]
[312303842,1705766569234,-500.0,0.00045753,40]
[312303843,1705766569261,-500.0,0.00045753,40]
[312303844,1705766569285,-500.0,0.00045753,40]
[312303845,1705766569310,-500.0,0.00045753,40]
[312303846,1705766569334,-581.13,0.00045753,40]
[312303847,1705766569358,-362.11390656,0.00045753,40]
[312303848,1705766569383,-601.79,0.00045753,40]
[312303849,1705766569407,-500.0,0.00045753,40]
[312303850,1705766569436,-500.0,0.00045753,40]
[312303851,1705766569461,-749.18,0.00045753,40]
[312303852,1705766569487,-500.0,0.00045753,40]
[312303853,1705766569512,-645.65,0.00045753,40]
[312303854,1705766569537,-673.47,0.00045753,40]
[312303855,1705766569562,-500.0,0.00045753,40]
[312303856,1705766569587,-500.0,0.00045753,40]
[312303857,1705766569611,-500.0,0.00045753,40]
[312303858,1705766569636,-1014.7,0.00045753,40]
[312303859,1705766569661,-731.43,0.00045753,40]
[312303860,1705766569686,-824.01,0.00045753,40]
[312303861,1705766569711,-500.0,0.00045753,40]
[312303862,1705766569734,-152.75273,0.000458,30]
[312303863,1705766569759,-500.0,0.00045808,30]
[312303864,1705766569784,-2081.23314313,0.000459,30]
[312303865,1705766569809,-3918.2,0.0004591,111]
[312303866,1705766569833,-350.0,0.00045918,120]
[312303867,1705766569856,-213.21289943,0.00045947,30]
[312303868,1705766569887,-500.0,0.00045987,41]
[312303869,1705766569911,-300.0,0.00046,47]
[312303870,1705766569934,-152.75273,0.00046,30]
[312303871,1705766569957,-540607.03292364,0.00046,40]
[312303872,1705766575137,-501.92591592,0.00042,30]
[312303873,1705766575194,-500.0,0.00044109,40]
[312303874,1705766575221,-500.0,0.00044383,40]
[312303875,1705766575248,-500.0,0.00044657,40]
[312303876,1705766575276,-500.0,0.00044931,40]
[312303877,1705766575308,-545.7868785,0.00045205,40]
[312303878,1705766575338,-459392.96707636,0.00046,40]
[312303879,1705766575365,-2022.938024,0.00046,30]
[312303880,1705766575392,-3248.15943038,0.00046,30]
[312303881,1705766575418,-236.03855881,0.00046,120]
[312303882,1705766575445,-1000.0,0.00046,30]
[312303883,1705766575473,-1200.0,0.00046,120]
[312303884,1705766575499,-1094.19150159,0.00046,120]
[312303885,1705766575525,-1314.0,0.00046,120]
[312303886,1705766575550,-837.69205455,0.00046,38]
[312303887,1705766575575,-4015.0,0.00046,120]
[312303888,1705766575600,-5000.0,0.00046,30]
[312303889,1705766575624,-200.0,0.00046,30]
[312303890,1705766575649,-150.0,0.00046,30]
[312303891,1705766575672,-500.0,0.00046027,40]
[312303892,1705766575699,-500.0,0.00046027,40]
[312303893,1705766575931,-916.21477901,0.00046027,40]
[312303894,1705766575959,-500.0,0.00046027,40]
[312303895,1705766575984,-182.99,0.00046027,40]
[312303896,1705766576008,-2646.67,0.00046027,40]
[312303897,1705766576031,-1087.88,0.00046027,40]
[312303898,1705766576060,-500.0,0.00046027,40]
[312303899,1705766576085,-2773.99,0.00046027,40]
[312303900,1705766576110,-500.0,0.00046027,40]
[312303901,1705766576134,-500.0,0.00046027,40]
[312303902,1705766576159,-500.0,0.00046027,40]
[312303903,1705766576183,-500.0,0.00046027,40]
[312303904,1705766576209,-500.0,0.00046027,40]
[312303905,1705766576233,-786.02,0.00046027,40]
[312303906,1705766576257,-1837.12,0.00046027,40]
[312303907,1705766576282,-500.0,0.00046027,40]
[312303908,1705766576306,-536.45762457,0.00046027,40]
[312303909,1705766576331,-1753.47,0.00046027,40]
[312303910,1705766576355,-1007.56,0.00046027,30]
[312303911,1705766576379,-500.0,0.00046027,40]
[312303912,1705766576404,-500.0,0.00046027,40]
[312303913,1705766576427,-500.0,0.00046027,40]
[312303914,1705766576453,-500.0,0.00046027,40]
[312303915,1705766576480,-500.0,0.00046027,40]
[312303916,1705766576505,-869.49,0.00046027,40]
[312303917,1705766576529,-500.0,0.00046027,40]
[312303918,1705766576554,-518.52,0.00046027,40]
[312303919,1705766576578,-552.05,0.00046027,40]
[312303920,1705766576603,-500.0,0.00046027,40]
[312303921,1705766576627,-734.76,0.00046027,40]
[312303922,1705766576652,-250.0944541,0.00046027,40]
[312303923,1705766576677,-535.85,0.00046027,40]
[312303924,1705766576703,-2536.89,0.00046027,40]
[312303925,1705766576729,-500.0,0.00046027,40]
[312303926,1705766576755,-500.0,0.00046027,40]
[312303927,1705766576782,-500.0,0.00046027,40]
[312303928,1705766576807,-500.0,0.00046027,40]
[312303929,1705766576831,-500.0,0.00046027,40]
[312303930,1705766576856,-581.13,0.00046027,40]
[312303931,1705766576881,-601.79,0.00046027,40]
[312303932,1705766576905,-500.0,0.00046027,40]
[312303933,1705766576928,-500.0,0.00046027,40]
[312303934,1705766576952,-749.18,0.00046027,40]
[312303935,1705766576976,-500.0,0.00046027,40]
[312303936,1705766577000,-645.65,0.00046027,40]
[312303937,1705766577025,-673.47,0.00046027,40]
[312303938,1705766577049,-500.0,0.00046027,40]
[312303939,1705766577072,-500.0,0.00046027,40]
[312303940,1705766577096,-500.0,0.00046027,40]
[312303941,1705766577120,-1014.7,0.00046027,40]
[312303942,1705766577144,-731.43,0.00046027,40]
[312303943,1705766577168,-824.01,0.00046027,40]
[312303944,1705766577192,-500.0,0.00046027,40]
[312303945,1705766577215,-190.66778,0.0004608,30]
[312303946,1705766577239,-500.0,0.00046301,40]
[312303947,1705766577262,-500.0,0.00046301,40]
[312303948,1705766577285,-500.0,0.00046301,40]
[312303949,1705766577309,-2646.67,0.00046301,40]
[312303950,1705766577334,-1087.88,0.00046301,40]
[312303951,1705766577359,-500.0,0.00046301,40]
[312303952,1705766577383,-2773.99,0.00046301,40]
[312303953,1705766577407,-500.0,0.00046301,40]
[312303954,1705766577431,-500.0,0.00046301,40]
[312303955,1705766577457,-500.0,0.00046301,40]
[312303956,1705766577481,-339.44828088,0.00046301,40]
[312303957,1705766577505,-500.0,0.00046301,40]
[312303958,1705766577529,-786.02,0.00046301,40]
[312303959,1705766577554,-1837.12,0.00046301,40]
[312303960,1705766577578,-500.0,0.00046301,40]
[312303961,1705766577604,-1753.47,0.00046301,40]
[312303962,1705766577628,-1007.56,0.00046301,30]
[312303963,1705766577654,-500.0,0.00046301,40]
[312303964,1705766577678,-223.75174265,0.00046301,40]
[312303965,1705766577703,-500.0,0.00046301,40]
[312303966,1705766577727,-500.0,0.00046301,40]
[312303967,1705766577752,-500.0,0.00046301,40]
[312303968,1705766577777,-869.49,0.00046301,40]
[312303969,1705766577803,-518.52,0.00046301,40]
[312303970,1705766577827,-500.0,0.00046301,40]
[312303971,1705766577852,-552.05,0.00046301,40]
[312303972,1705766577877,-500.0,0.00046301,40]
[312303973,1705766577902,-734.76,0.00046301,40]
[312303974,1705766577926,-535.85,0.00046301,40]
[312303975,1705766577951,-2536.89,0.00046301,40]
[312303976,1705766577976,-500.0,0.00046301,40]
[312303977,1705766577999,-500.0,0.00046301,40]
[312303978,1705766578027,-500.0,0.00046301,40]
[312303979,1705766578052,-500.0,0.00046301,40]
[312303980,1705766578078,-500.0,0.00046301,40]
[312303981,1705766578103,-581.13,0.00046301,40]
[312303982,1705766578128,-601.79,0.00046301,40]
[312303983,1705766578151,-500.0,0.00046301,40]
[312303984,1705766578175,-500.0,0.00046301,40]
[312303985,1705766578201,-749.18,0.00046301,40]
[312303986,1705766578227,-500.0,0.00046301,40]
[312303987,1705766578251,-645.65,0.00046301,40]
[312303988,1705766578278,-673.47,0.00046301,40]
[312303989,1705766578302,-500.0,0.00046301,40]
[312303990,1705766578326,-351.54395933,0.00046301,40]
[312303991,1705766578349,-474.61439386,0.00046301,40]
[312303992,1705766578373,-1014.7,0.00046301,40]
[312303993,1705766578396,-731.43,0.00046301,40]
[312303994,1705766578421,-824.01,0.00046301,40]
[312303995,1705766578447,-500.0,0.00046301,40]
[312303996,1705766578617,-500.0,0.00046356,30]
[312303997,1705766578644,-2000.0,0.00046362,120]
[312303998,1705766578669,-336.00509672,0.00046362,120]
[312303999,1705766578695,-654.05512176,0.00046388,60]
[312304000,1705766578720,-1000000.0,0.000465,120]
[312304001,1705766578744,-878.989,0.000465,120]
[312304002,1705766578768,-878.99,0.000465,120]
[312304003,1705766578795,-878.99,0.000465,120]
[312304004,1705766578819,-878.99,0.000465,120]
[312304005,1705766578843,-878.99,0.000465,120]
[312304006,1705766578867,-400.0,0.00046521,120]
[312304007,1705766578892,-513.39671846,0.00046543,30]
[312304008,1705766578915,-497.52752451,0.00046543,30]
[312304009,1705766578937,-465.61931112,0.00046543,30]
[312304010,1705766578960,-59813.141413,0.00046548,120]
[312304011,1705766578983,-6258.237166,0.00046548,120]
[312304012,1705766579006,-1000.0,0.00046575,40]
[312304013,1705766579028,-273.40389079,0.00046575,40]
[312304014,1705766579051,-310.30257401,0.00046575,120]
[312304015,1705766579075,-500.0,0.00046575,40]
[312304016,1705766579105,-500.0,0.00046575,40]
[312304017,1705766579130,-500.0,0.00046575,40]
[312304018,1705766579154,-160.91393181,0.00046575,120]
[312304019,1705766579178,-411.53399057,0.00046575,120]
[312304020,1705766579202,-500.0,0.00046575,120]
[312304021,1705766579226,-456.02135536,0.00046575,120]
[312304022,1705766579250,-188.24298963,0.00046575,120]
[312304023,1705766579274,-2646.67,0.00046575,40]
[312304024,1705766579299,-1087.88,0.00046575,40]
[312304025,1705766579324,-500.0,0.00046575,40]
[312304026,1705766579351,-2773.99,0.00046575,40]
[312304027,1705766579376,-531.09266448,0.00046575,40]
[312304028,1705766579402,-500.0,0.00046575,40]
[312304029,1705766579427,-500.0,0.00046575,40]
[312304030,1705766579453,-500.0,0.00046575,40]
[312304031,1705766579478,-786.02,0.00046575,40]
[312304032,1705766579503,-1837.12,0.00046575,40]
[312304033,1705766579528,-500.0,0.00046575,40]
[312304034,1705766579553,-1753.47,0.00046575,40]
[312304035,1705766579576,-1007.56,0.00046575,30]
[312304036,1705766579600,-500.0,0.00046575,40]
[312304037,1705766579625,-500.0,0.00046575,40]
[312304038,1705766579650,-495.00268214,0.00046575,40]
[312304039,1705766579675,-500.0,0.00046575,40]
[312304040,1705766579701,-869.49,0.00046575,40]
[312304041,1705766579725,-518.52,0.00046575,40]
[312304042,1705766579749,-500.0,0.00046575,40]
[312304043,1705766579773,-552.05,0.00046575,40]
[312304044,1705766579801,-500.0,0.00046575,40]
[312304045,1705766579824,-734.76,0.00046575,40]
[312304046,1705766579849,-535.85,0.00046575,40]
[312304047,1705766579874,-2536.89,0.00046575,40]
[312304048,1705766579898,-500.0,0.00046575,40]
[312304049,1705766579923,-500.0,0.00046575,40]
[312304050,1705766579949,-500.0,0.00046575,40]
[312304051,1705766579974,-500.0,0.00046575,40]
[312304052,1705766579998,-500.0,0.00046575,40]
[312304053,1705766580023,-581.13,0.00046575,40]
[312304054,1705766580048,-601.79,0.00046575,40]
[312304055,1705766580073,-500.0,0.00046575,40]
[312304056,1705766580097,-500.0,0.00046575,40]
[312304057,1705766580121,-749.18,0.00046575,40]
[312304058,1705766580146,-500.0,0.00046575,40]
[312304059,1705766580169,-645.65,0.00046575,40]
[312304060,1705766580197,-673.47,0.00046575,40]
[312304061,1705766580226,-500.0,0.00046575,40]
[312304062,1705766580253,-1014.7,0.00046575,40]
[312304063,1705766580280,-731.43,0.00046575,40]
[312304064,1705766580306,-824.01,0.00046575,40]
[312304065,1705766580331,-500.0,0.00046575,40]
[312304066,1705766580354,-651.83,0.00046575,30]
[312304067,1705766580377,-156.42209015,0.00046621,30]
[312304068,1705766580402,-1200.2159918,0.000467,30]
[312304069,1705766580425,-213.0,0.0004671,30]
[312304070,1705766580449,-237.0,0.0004671,30]
[312304071,1705766580472,-40747.0,0.000468,30]
[312304072,1705766580497,-500.0,0.00046849,40]
[312304073,1705766580519,-500.0,0.00046849,40]
[312304074,1705766580542,-500.0,0.00046849,40]
[312304075,1705766580566,-2646.67,0.00046849,40]
[312304076,1705766580590,-1087.88,0.00046849,40]
[312304077,1705766580615,-500.0,0.00046849,40]
[312304078,1705766580643,-2773.99,0.00046849,40]
[312304079,1705766580668,-500.0,0.00046849,40]
[312304080,1705766580693,-500.0,0.00046849,40]
[312304081,1705766580718,-500.0,0.00046849,40]
[312304082,1705766580742,-786.02,0.00046849,40]
[312304083,1705766580767,-1837.12,0.00046849,40]
[312304084,1705766580791,-500.0,0.00046849,40]
[312304085,1705766580816,-1753.47,0.00046849,40]
[312304086,1705766580840,-1007.56,0.00046849,30]
[312304087,1705766580864,-500.0,0.00046849,40]
[312304088,1705766580890,-500.0,0.00046849,40]
[312304089,1705766580915,-500.0,0.00046849,40]
[312304090,1705766580941,-869.49,0.00046849,40]
[312304091,1705766580966,-518.52,0.00046849,40]
[312304092,1705766580991,-500.0,0.00046849,40]
[312304093,1705766581015,-552.05,0.00046849,40]
[312304094,1705766581040,-500.0,0.00046849,40]
[312304095,1705766581065,-734.76,0.00046849,40]
[312304096,1705766581089,-535.85,0.00046849,40]
[312304097,1705766581113,-2536.89,0.00046849,40]
[312304098,1705766581136,-500.0,0.00046849,40]
[312304099,1705766581160,-500.0,0.00046849,40]
[312304100,1705766581321,-500.0,0.00046849,40]
[312304101,1705766581348,-500.0,0.00046849,40]
[312304102,1705766581372,-500.0,0.00046849,40]
[312304103,1705766581398,-581.13,0.00046849,40]
[312304104,1705766581429,-601.79,0.00046849,40]
[312304105,1705766581455,-500.0,0.00046849,40]
[312304106,1705766581482,-500.0,0.00046849,40]
[312304107,1705766581510,-749.18,0.00046849,40]
[312304108,1705766581538,-500.0,0.00046849,40]
[312304109,1705766581563,-645.65,0.00046849,40]
[312304110,1705766581587,-673.47,0.00046849,40]
[312304111,1705766581611,-500.0,0.00046849,40]
[312304112,1705766581636,-1014.7,0.00046849,40]
[312304113,1705766581661,-731.43,0.00046849,40]
[312304114,1705766581686,-824.01,0.00046849,40]
[312304115,1705766581711,-500.0,0.00046849,40]
[312304116,1705766581734,-1133.8975694,0.000469,120]
[312304117,1705766581758,-500.0,0.00046904,30]
[312304118,1705766581782,-350.0,0.00046904,120]
[312304119,1705766581807,-500.0,0.00046987,43]
[312304120,1705766581831,-1462.59551557,0.00047,30]
[312304121,1705766581857,-3763.01672844,0.00047,30]
[312304122,1705766581883,-830.0,0.00047,120]
[312304123,1705766581914,-2331.95473329,0.00047,120]
[312304124,1705766581942,-330.25384503,0.00047,30]
[312304125,1705766581967,-3000.0,0.00047,120]
[312304126,1705766581993,-585.6339,0.00047,30]
[312304127,1705766582019,-300.0,0.00047,48]
[312304128,1705766582043,-265.04039566,0.00047,120]
[312304129,1705766582068,-3050.62,0.00047,120]
[312304130,1705766582092,-3000.0,0.000471,36]
[312304131,1705766582115,-500.0,0.00047123,40]
[312304132,1705766582139,-500.0,0.00047123,40]
[312304133,1705766582162,-500.0,0.00047123,40]
[312304134,1705766582186,-2646.67,0.00047123,40]
[312304135,1705766582213,-1087.88,0.00047123,40]
[312304136,1705766582238,-500.0,0.00047123,40]
[312304137,1705766582263,-2773.99,0.00047123,40]
[312304138,1705766582287,-500.0,0.00047123,40]
[312304139,1705766582311,-500.0,0.00047123,40]
[312304140,1705766582334,-500.0,0.00047123,40]
[312304141,1705766582358,-786.02,0.00047123,40]
[312304142,1705766582385,-1837.12,0.00047123,40]
[312304143,1705766582410,-500.0,0.00047123,40]
[312304144,1705766582434,-1753.47,0.00047123,40]
[312304145,1705766582459,-1007.56,0.00047123,30]
[312304146,1705766582483,-500.0,0.00047123,40]
[312304147,1705766582507,-500.0,0.00047123,40]
[312304148,1705766582531,-500.0,0.00047123,40]
[312304149,1705766582556,-869.49,0.00047123,40]
[312304150,1705766582580,-518.52,0.00047123,40]
[312304151,1705766582605,-500.0,0.00047123,40]
[312304152,1705766582630,-552.05,0.00047123,40]
[312304153,1705766582655,-500.0,0.00047123,40]
[312304154,1705766582679,-734.76,0.00047123,40]
[312304155,1705766582704,-535.85,0.00047123,40]
[312304156,1705766582729,-2536.89,0.00047123,40]
[312304157,1705766582753,-500.0,0.00047123,40]
[312304158,1705766582776,-500.0,0.00047123,40]
[312304159,1705766582803,-500.0,0.00047123,40]
[312304160,1705766582827,-500.0,0.00047123,40]
[312304161,1705766582852,-500.0,0.00047123,40]
[312304162,1705766582876,-581.13,0.00047123,40]
[312304163,1705766582900,-601.79,0.00047123,40]
[312304164,1705766582924,-500.0,0.00047123,40]
[312304165,1705766582949,-500.0,0.00047123,40]
[312304166,1705766582973,-749.18,0.00047123,40]
[312304167,1705766582998,-472.94912286,0.00047123,40]
[312304168,1705766583023,-645.65,0.00047123,40]
[312304169,1705766583048,-673.47,0.00047123,40]
[312304170,1705766583073,-500.0,0.00047123,40]
[312304171,1705766583099,-1014.7,0.00047123,40]
[312304172,1705766583124,-731.43,0.00047123,40]
[312304173,1705766583149,-824.01,0.00047123,40]
[312304174,1705766583173,-229.18606599,0.00047123,40]
[312304175,1705766583198,-500.0,0.00047397,40]
[312304176,1705766583222,-500.0,0.00047397,40]
[312304177,1705766583247,-500.0,0.00047397,40]
[312304178,1705766583270,-2646.67,0.00047397,40]
[312304179,1705766583294,-1087.88,0.00047397,40]
[312304180,1705766583318,-500.0,0.00047397,40]
[312304181,1705766583343,-2773.99,0.00047397,40]
[312304182,1705766583367,-541.26333162,0.00047397,40]
[312304183,1705766583392,-500.0,0.00047397,40]
[312304184,1705766583416,-500.0,0.00047397,40]
[312304185,1705766583441,-786.02,0.00047397,40]
[312304186,1705766583467,-1837.12,0.00047397,40]
[312304187,1705766583492,-545.705521,0.00047397,40]
[312304188,1705766583520,-1753.47,0.00047397,40]
[312304189,1705766583543,-1007.56,0.00047397,30]
[312304190,1705766583571,-500.0,0.00047397,40]
[312304191,1705766583596,-500.0,0.00047397,40]
[312304192,1705766583621,-500.0,0.00047397,40]
[312304193,1705766583650,-869.49,0.00047397,40]
[312304194,1705766583677,-500.0,0.00047397,40]
[312304195,1705766583705,-518.52,0.00047397,40]
[312304196,1705766583731,-552.05,0.00047397,40]
[312304197,1705766583755,-500.0,0.00047397,40]
[312304198,1705766583781,-734.76,0.00047397,40]
[312304199,1705766583808,-535.85,0.00047397,40]
[312304200,1705766583833,-2536.89,0.00047397,40]
[312304201,1705766583858,-500.0,0.00047397,40]